lending/lending_fUSD_20240401
["ID","MTS","AMOUNT","RATE_DAILY","PERIOD"]
[321210997,1711984329256,-173.59,0.00047603,2]
[321210998,1711984329267,-452.24,0.000477,7]
[321210999,1711984329280,-229.34,0.000477,7]
[321211000,1711984329290,-311.11,0.000479,7]
[321211001,1711984329301,-151.0,0.00048,120]
[321211002,1711984329312,-5822.81366112,0.00048,120]
[321211003,1711984329323,-600.0,0.00048,49]
[321211004,1711984329334,-20236.87999125,0.00048119,7]
[321211005,1711984329345,-150.0,0.00048224,2]
[321211006,1711984329355,-19871.76759219,0.000487,2]
[321211007,1711984329366,-1012.0,0.000487,117]
[321211008,1711984329376,-151.08,0.00048828,2]
[321211009,1711984329387,-382.27,0.00048986,15]
[321211010,1711984329397,-3148.28134033,0.00049,120]
[321211011,1711984329407,-2399.9999981,0.00049,50]
[321211012,1711984329418,-151.0,0.00049041,120]
[321211013,1711984329428,-5347.51,0.00049063,120]
[321211014,1711984329438,-150.0,0.00049199,2]
[321211015,1711984329449,-1510.0,0.000493,2]
[321211016,1711984329459,-1053.58,0.00049315,60]
[321211017,1711984329469,-1000.0,0.00049315,7]
[321211018,1711984329479,-399.0,0.00049315,7]
[321211019,1711984329489,-151.0,0.00049315,120]
[321211020,1711984329500,-480.0,0.00049394,7]
[321211021,1711984329510,-229.34,0.000494,7]
[321211022,1711984329520,-1759.0,0.00049568,2]
[321211023,1711984329536,-10118.24038503,0.000498,60]
[321211024,1711984329547,-452.24,0.000498,7]
[321211025,1711984329557,-838.06132381,0.0005,2]
[321211026,1711984329567,-42181.38053145,0.0005,85]
[321211027,1711984329579,-42181.38053145,0.0005,85]
[321211028,1711984329589,-42181.38053145,0.0005,85]
[321211029,1711984329600,-42181.38053145,0.0005,85]
[321211030,1711984329610,-42181.38053145,0.0005,85]
[321211031,1711984329620,-42181.38053145,0.0005,85]
[321211032,1711984329630,-42181.38053145,0.0005,85]
[321211033,1711984329640,-42181.38053145,0.0005,85]
[321211034,1711984329650,-42181.38053145,0.0005,85]
[321211035,1711984329661,-42181.37953145,0.0005,85]
[321211036,1711984329673,-1033.75697429,0.0005,85]
[321211037,1711984329683,-25289.80034269,0.0005,4]
[321211038,1711984329694,-2311.47826288,0.0005,30]
[321211039,1711984329708,-429.26129912,0.0005,28]
[321211040,1711984329720,-232.27042375,0.0005,30]
[321211041,1711984329731,-151.0,0.0005,120]
[321211042,1711984329743,-311.11,0.0005,7]
[321211043,1711984329755,-151.0,0.0005,30]
[321211044,1711984329765,-151.0,0.0005,30]
[321211045,1711984329779,-179.800726,0.0005,120]
[321211046,1711984329790,-179.800726,0.0005,120]
[321211047,1711984329801,-151.0,0.0005,120]
[321211048,1711984329813,-151.0,0.0005,120]
[321211049,1711984329824,-151.0,0.0005,120]
[321211050,1711984329835,-151.0,0.0005,120]
[321211051,1711984329846,-151.0,0.0005,120]
[321211052,1711984329857,-157.12364,0.0005,120]
[321211053,1711984329868,-151.0,0.00050082,120]
[321211054,1711984329878,-1053.58,0.00050136,64]
[321211055,1711984329889,-150.0,0.00050175,120]
[321211056,1711984329900,-628.130864,0.00050198,92]
[321211057,1711984329911,-24242.60451532,0.00050497,60]
[321211058,1711984329922,-151.032606,0.00050498,75]
[321211059,1711984329932,-314.065626,0.00050498,100]
[321211060,1711984329943,-169.42,0.00050514,2]
[321211061,1711984329954,-200.0,0.00050628,120]
[321211062,1711984329964,-166.32,0.00050741,2]
[321211063,1711984329975,-628.130432,0.00050798,82]
[321211064,1711984329986,-604.130424,0.00050798,76]
[321211065,1711984329998,-229.34,0.000509,7]
[321211066,1711984330009,-1053.58,0.00050958,68]
[321211067,1711984330020,-8000.01499758,0.00051,3]
[321211068,1711984330038,-2817.1197707,0.00051,3]
[321211069,1711984330049,-1500.00000095,0.00051,52]
[321211070,1711984330060,-22502.10112363,0.000511,7]
[321211071,1711984330072,-452.24,0.000511,7]
[321211072,1711984330083,-151.0,0.00051123,120]
[321211073,1711984330094,-150.0,0.0005115,120]
[321211074,1711984330105,-311.11,0.000512,7]
[321211075,1711984330117,-1982.93,0.00051455,2]
[321211076,1711984330128,-314.06563,0.00051498,109]
[321211077,1711984330139,-154.81,0.00051528,30]
[321211078,1711984330150,-150.0,0.00051528,30]
[321211079,1711984330162,-365.33,0.00051528,30]
[321211080,1711984330173,-647.87,0.00051528,30]
[321211081,1711984330184,-416.54,0.00051528,30]
[321211082,1711984330194,-416.54,0.00051528,30]
[321211083,1711984330205,-416.54,0.00051528,30]
[321211084,1711984330216,-150.0,0.00051528,60]
[321211085,1711984330227,-150.0,0.00051528,60]
[321211086,1711984330459,-150.0,0.00051528,60]
[321211087,1711984330477,-382.27,0.00051726,120]
[321211088,1711984330486,-302.06563,0.00051745,106]
[321211089,1711984330496,-302.065212,0.00051748,83]
[321211090,1711984330505,-1053.58,0.0005178,72]
[321211091,1711984330515,-157.032815,0.00051798,104]
[321211092,1711984330530,-1759.0,0.00051832,2]
[321211093,1711984330539,-15110.60658419,0.00051997,2]
[321211094,1711984330548,-657705.38295789,0.00052,2]
[321211095,1711984330557,-14299.717594,0.00052,120]
[321211096,1711984330567,-150.0,0.00052,2]
[321211097,1711984330575,-150.0,0.00052,2]
[321211098,1711984330585,-267.0,0.00052,120]
[321211099,1711984330594,-157.045568,0.00052,120]
[321211100,1711984330603,-150.0,0.00052,2]
[321211101,1711984330612,-151.0,0.00052,120]
[321211102,1711984330621,-150.0,0.00052,2]
[321211103,1711984330630,-150.0,0.00052,2]
[321211104,1711984330639,-151.0,0.00052,120]
[321211105,1711984330648,-164.389764,0.00052,120]
[321211106,1711984330657,-500.0,0.0005212,90]
[321211107,1711984330667,-150.0,0.00052126,120]
[321211108,1711984330677,-151.0,0.00052164,120]
[321211109,1711984330686,-800.0,0.00052246,120]
[321211110,1711984330698,-150.0,0.0005225,120]
[321211111,1711984330708,-229.34,0.000523,30]
[321211112,1711984330719,-2228.6,0.00052302,117]
[321211113,1711984330729,-150.0,0.00052353,120]
[321211114,1711984330739,-452.24,0.000524,14]
[321211115,1711984330748,-311.11,0.000525,7]
[321211116,1711984330758,-1053.58,0.00052602,120]
[321211117,1711984330767,-1267.57,0.00052729,120]
[321211118,1711984330781,-151.0,0.00052849,120]
[321211119,1711984330792,-310.62380662,0.000529,30]
[321211120,1711984330802,-2190.93238794,0.000531,120]
[321211121,1711984330811,-150.0,0.00053101,120]
[321211122,1711984330821,-2606.35,0.00053193,30]
[321211123,1711984330831,-151.0,0.00053205,120]
[321211124,1711984330840,-150.0,0.00053277,14]
[321211125,1711984330849,-150.0,0.00053277,14]
[321211126,1711984330858,-150.0,0.00053277,14]
[321211127,1711984330867,-150.0,0.00053277,14]
[321211128,1711984330876,-150.0,0.00053277,14]
[321211129,1711984330886,-150.0,0.00053277,14]
[321211130,1711984330895,-150.0,0.00053277,14]
[321211131,1711984330904,-150.0,0.00053277,14]
[321211132,1711984330913,-150.0,0.00053277,14]
[321211133,1711984330923,-150.0,0.00053277,14]
[321211134,1711984330932,-150.0,0.00053277,14]
[321211135,1711984330941,-150.0,0.00053277,14]
[321211136,1711984330950,-150.0,0.00053277,14]
[321211137,1711984330959,-150.0,0.00053277,14]
[321211138,1711984330967,-150.0,0.00053277,14]
[321211139,1711984330977,-150.0,0.00053277,14]
[321211140,1711984330986,-150.0,0.00053277,14]
[321211141,1711984330995,-150.0,0.00053277,14]
[321211142,1711984331006,-150.0,0.00053277,14]
[321211143,1711984331015,-150.0,0.00053277,14]
[321211144,1711984331027,-150.0,0.00053277,14]
[321211145,1711984331036,-150.0,0.00053277,14]
[321211146,1711984331045,-150.0,0.00053277,14]
[321211147,1711984331055,-150.0,0.00053277,14]
[321211148,1711984331065,-150.0,0.00053277,14]
[321211149,1711984331075,-150.0,0.00053277,14]
[321211150,1711984331084,-150.0,0.00053277,14]
[321211151,1711984331094,-150.0,0.00053277,14]
[321211152,1711984331103,-150.0,0.00053277,14]
[321211153,1711984331112,-150.0,0.00053277,14]
[321211154,1711984331121,-150.0,0.00053277,14]
[321211155,1711984331131,-150.0,0.00053277,14]
[321211156,1711984331141,-150.0,0.00053277,14]
[321211157,1711984331151,-163.08710994,0.00053277,14]
[321211158,1711984331161,-229.34,0.000533,30]
[321211159,1711984331170,-15110.60658419,0.00053421,2]
[321211160,1711984331180,-300.0,0.00053424,30]
[321211161,1711984331189,-1053.58,0.00053424,120]
[321211162,1711984331199,-387.24623827,0.0005375,30]
[321211163,1711984331209,-452.24,0.000538,14]
[321211164,1711984331220,-12000.0,0.00053801,8]
[321211165,1711984331230,-311.11,0.000539,7]
[321211166,1711984331240,-166.32,0.00053912,2]
[321211167,1711984331250,-203.37248674,0.00053927,11]
[321211168,1711984331260,-152.37,0.00053961,2]
[321211169,1711984331269,-41943.63416992,0.00054,120]
[321211170,1711984331282,-500000.0,0.00054,2]
[321211171,1711984331291,-250.03001415,0.00054,30]
[321211172,1711984331301,-155.21459561,0.00054,4]
[321211173,1711984331310,-512.29281188,0.00054,2]
[321211174,1711984331320,-151.0,0.00054,120]
[321211175,1711984331330,-151.0,0.00054,120]
[321211176,1711984331339,-150.0,0.00054077,120]
[321211177,1711984331348,-1759.0,0.00054096,2]
[321211178,1711984331357,-1053.58,0.00054246,120]
[321211179,1711984331366,-151.0,0.00054247,120]
[321211180,1711984331376,-154.55,0.00054338,2]
[321211181,1711984331386,-382.27,0.00054466,120]
[321211182,1711984331395,-1196.48904737,0.0005449,10]
[321211183,1711984331404,-154.07,0.000545,8]
[321211184,1711984331414,-154.07,0.000545,8]
[321211185,1711984331423,-857.93,0.000545,8]
[321211186,1711984331433,-857.93,0.000545,8]
[321211187,1711984331443,-857.93,0.000545,8]
[321211188,1711984331453,-857.93,0.000545,8]
[321211189,1711984331462,-857.93,0.000545,8]
[321211190,1711984331471,-857.93,0.000545,8]
[321211191,1711984331482,-857.93,0.000545,8]
[321211192,1711984331493,-857.93,0.000545,8]
[321211193,1711984331504,-857.93,0.000545,8]
[321211194,1711984331513,-857.93,0.000545,8]
[321211195,1711984331522,-857.93,0.000545,8]
[321211196,1711984331536,-857.93,0.000545,8]
[321211197,1711984331546,-857.93,0.000545,8]
[321211198,1711984331555,-857.93,0.000545,8]
[321211199,1711984331565,-857.93,0.000545,8]
[321211200,1711984331573,-857.93,0.000545,8]
[321211201,1711984331584,-857.93,0.000545,8]
[321211202,1711984331594,-857.93,0.000545,8]
[321211203,1711984331604,-857.93,0.000545,8]
[321211204,1711984331614,-857.93,0.000545,8]
[321211205,1711984331623,-1500.79042077,0.000545,120]
[321211206,1711984331633,-8601.26261966,0.0005463,30]
[321211207,1711984331641,-179.546652,0.00054653,120]
[321211208,1711984331652,-2424.0,0.00054653,120]
[321211209,1711984331661,-1255.0,0.00054653,120]
[321211210,1711984331671,-538.0,0.00054653,120]
[321211211,1711984331680,-296.705,0.00054653,120]
[321211212,1711984331690,-1226.0,0.00054653,120]
[321211213,1711984331701,-279.0,0.00054653,120]
[321211214,1711984331710,-1269.0,0.00054653,120]
[321211215,1711984331720,-434.0,0.00054653,120]
[321211216,1711984331729,-1139.0,0.00054653,120]
[321211217,1711984331740,-396.0,0.00054653,120]
[321211218,1711984331749,-1464.0,0.00054653,120]
[321211219,1711984331758,-2986.0,0.00054653,120]
[321211220,1711984331768,-279.084,0.00054653,120]
[321211221,1711984331784,-2428.0,0.00054653,120]
[321211222,1711984331794,-1629.0,0.00054653,120]
[321211223,1711984331804,-214.0,0.00054653,2]
[321211224,1711984331813,-229.34,0.000547,30]
[321211225,1711984331824,-151.0,0.00054792,30]
[321211226,1711984331833,-151.0,0.00054792,30]
[321211227,1711984331842,-179.800726,0.00054792,120]
[321211228,1711984331852,-179.800726,0.00054792,120]
[321211229,1711984331861,-151.0,0.00054792,120]
[321211230,1711984331871,-151.0,0.00054792,120]
[321211231,1711984331880,-179.301426,0.00054792,120]
[321211232,1711984331889,-500.0,0.00054794,120]
[321211233,1711984331900,-500.0,0.00054794,120]
[321211234,1711984331909,-500.0,0.00054794,120]
[321211235,1711984331920,-500.0,0.00054794,120]
[321211236,1711984331930,-500.0,0.00054794,120]
[321211237,1711984331940,-500.0,0.00054794,120]
[321211238,1711984331950,-500.0,0.00054794,120]
[321211239,1711984331960,-500.0,0.00054794,120]
[321211240,1711984331969,-500.0,0.00054794,120]
[321211241,1711984331979,-514.20928611,0.00054794,120]
[321211242,1711984331988,-500.0,0.00054794,120]
[321211243,1711984331997,-500.0,0.00054794,120]
[321211244,1711984332006,-508.08981972,0.00054794,120]
[321211245,1711984332015,-500.0,0.00054794,120]
[321211246,1711984332030,-500.0,0.00054794,120]
[321211247,1711984332039,-500.0,0.00054794,120]
[321211248,1711984332049,-307.44921614,0.00054794,120]
[321211249,1711984332058,-500.0,0.00054794,120]
[321211250,1711984332068,-500.0,0.00054794,120]
[321211251,1711984332077,-500.0,0.00054794,120]
[321211252,1711984332088,-500.0,0.00054794,120]
[321211253,1711984332098,-514.96187895,0.00054794,120]
[321211254,1711984332107,-500.0,0.00054794,120]
[321211255,1711984332116,-500.0,0.00054794,120]
[321211256,1711984332125,-500.0,0.00054794,120]
[321211257,1711984332134,-500.0,0.00054794,120]
[321211258,1711984332144,-509.09510248,0.00054794,120]
[321211259,1711984332153,-500.0,0.00054794,120]
[321211260,1711984332162,-500.0,0.00054794,120]
[321211261,1711984332171,-500.0,0.00054794,120]
[321211262,1711984332181,-500.0,0.00054794,120]
[321211263,1711984332190,-500.0,0.00054794,120]
[321211264,1711984332199,-500.0,0.00054794,120]
[321211265,1711984332208,-500.0,0.00054794,120]
[321211266,1711984332218,-500.0,0.00054794,120]
[321211267,1711984332227,-500.0,0.00054794,120]
[321211268,1711984332237,-500.0,0.00054794,120]
[321211269,1711984332246,-505.03969254,0.00054794,120]
[321211270,1711984332258,-500.0,0.00054794,120]
[321211271,1711984332277,-500.0,0.00054794,120]
[321211272,1711984332287,-500.0,0.00054794,120]
[321211273,1711984332297,-509.00853292,0.00054794,120]
[321211274,1711984332306,-500.0,0.00054794,120]
[321211275,1711984332316,-500.0,0.00054794,120]
[321211276,1711984332325,-558.57206001,0.00054794,120]
[321211277,1711984332335,-500.0,0.00054794,120]
[321211278,1711984332344,-500.0,0.00054794,120]
[321211279,1711984332354,-500.0,0.00054794,120]
[321211280,1711984332364,-500.0,0.00054794,120]
[321211281,1711984332374,-500.0,0.00054794,120]
[321211282,1711984332383,-500.0,0.00054794,120]
[321211283,1711984332393,-500.0,0.00054794,120]
[321211284,1711984332402,-500.0,0.00054794,120]
[321211285,1711984332411,-500.0,0.00054794,120]
[321211286,1711984332421,-500.0,0.00054794,120]
[321211287,1711984332430,-500.0,0.00054794,120]
[321211288,1711984332439,-500.0,0.00054794,120]
[321211289,1711984332448,-500.0,0.00054794,120]
[321211290,1711984332457,-500.0,0.00054794,120]
[321211291,1711984332466,-500.0,0.00054794,120]
[321211292,1711984332475,-500.0,0.00054794,120]
[321211293,1711984332484,-500.0,0.00054794,120]
[321211294,1711984332493,-500.0,0.00054794,120]
[321211295,1711984332503,-500.0,0.00054794,120]
[321211296,1711984332517,-513.2557792,0.00054794,120]
[321211297,1711984332531,-500.0,0.00054794,120]
[321211298,1711984332541,-500.0,0.00054794,120]
[321211299,1711984332550,-500.0,0.00054794,120]
[321211300,1711984332560,-500.0,0.00054794,120]
[321211301,1711984332569,-600.0,0.00054794,2]
[321211302,1711984332579,-500.0,0.00054794,120]
[321211303,1711984332588,-500.0,0.00054794,120]
[321211304,1711984332597,-500.0,0.00054794,120]
[321211305,1711984332606,-500.0,0.00054794,120]
[321211306,1711984332615,-500.0,0.00054794,120]
[321211307,1711984332624,-500.0,0.00054794,120]
[321211308,1711984332633,-500.0,0.00054794,120]
[321211309,1711984332643,-500.0,0.00054794,120]
[321211310,1711984332652,-500.0,0.00054794,120]
[321211311,1711984332662,-500.0,0.00054794,120]
[321211312,1711984332673,-500.0,0.00054794,120]
[321211313,1711984332682,-500.0,0.00054794,120]
[321211314,1711984332691,-565.51849304,0.00054794,120]
[321211315,1711984332704,-500.0,0.00054794,120]
[321211316,1711984332714,-500.0,0.00054794,120]
[321211317,1711984332725,-500.0,0.00054794,120]
[321211318,1711984332734,-470.13,0.00054794,120]
[321211319,1711984332744,-500.0,0.00054794,120]
[321211320,1711984332753,-508.14542444,0.00054794,120]
[321211321,1711984332763,-512.11097075,0.00054794,120]
[321211322,1711984332773,-500.0,0.00054794,120]
[321211323,1711984332789,-512.20716078,0.00054794,120]
[321211324,1711984332798,-500.0,0.00054794,120]
[321211325,1711984332808,-500.0,0.00054794,120]
[321211326,1711984332817,-500.0,0.00054794,120]
[321211327,1711984332826,-500.0,0.00054794,120]
[321211328,1711984332835,-500.0,0.00054794,120]
[321211329,1711984332844,-511.62484423,0.00054794,120]
[321211330,1711984332855,-500.0,0.00054794,120]
[321211331,1711984332864,-505.56748025,0.00054794,120]
[321211332,1711984332876,-505.3388467,0.00054794,120]
[321211333,1711984332885,-501.09307856,0.00054794,120]
[321211334,1711984332894,-500.0,0.00054794,120]
[321211335,1711984332904,-500.0,0.00054794,120]
[321211336,1711984332913,-500.0,0.00054794,120]
[321211337,1711984332922,-500.0,0.00054794,120]
[321211338,1711984332931,-500.0,0.00054794,120]
[321211339,1711984332941,-390.50968248,0.00054794,120]
[321211340,1711984332949,-500.0,0.00054794,120]
[321211341,1711984332958,-500.0,0.00054794,120]
[321211342,1711984332968,-512.92833978,0.00054794,120]
[321211343,1711984332978,-500.0,0.00054794,120]
[321211344,1711984332987,-511.99031546,0.00054794,120]
[321211345,1711984332996,-500.0,0.00054794,120]
[321211346,1711984333006,-500.0,0.00054794,120]
[321211347,1711984333015,-500.0,0.00054794,120]
[321211348,1711984333024,-500.0,0.00054794,120]
[321211349,1711984333038,-199.77359708,0.00054794,120]
[321211350,1711984333048,-500.0,0.00054794,120]
[321211351,1711984333057,-500.0,0.00054794,120]
[321211352,1711984333066,-500.0,0.00054794,120]
[321211353,1711984333076,-500.0,0.00054794,120]
[321211354,1711984333086,-500.0,0.00054794,120]
[321211355,1711984333096,-504.86671322,0.00054794,120]
[321211356,1711984333107,-507.06772124,0.00054794,120]
[321211357,1711984333118,-500.0,0.00054794,120]
[321211358,1711984333128,-500.0,0.00054794,120]
[321211359,1711984333138,-500.0,0.00054794,120]
[321211360,1711984333148,-500.0,0.00054794,120]
[321211361,1711984333157,-500.0,0.00054794,120]
[321211362,1711984333167,-500.0,0.00054794,120]
[321211363,1711984333177,-500.0,0.00054794,120]
[321211364,1711984333187,-500.0,0.00054794,120]
[321211365,1711984333196,-500.0,0.00054794,120]
[321211366,1711984333205,-522.46286059,0.00054794,120]
[321211367,1711984333214,-500.0,0.00054794,120]
[321211368,1711984333224,-500.0,0.00054794,120]
[321211369,1711984333233,-500.0,0.00054794,120]
[321211370,1711984333243,-500.0,0.00054794,120]
[321211371,1711984333252,-500.0,0.00054794,120]
[321211372,1711984333262,-500.0,0.00054794,120]
[321211373,1711984333272,-507.83696835,0.00054794,120]
[321211374,1711984333286,-500.0,0.00054794,120]
[321211375,1711984333296,-500.0,0.00054794,120]
[321211376,1711984333306,-504.77887366,0.00054794,120]
[321211377,1711984333316,-500.0,0.00054794,120]
[321211378,1711984333326,-500.0,0.00054794,120]
[321211379,1711984333335,-500.0,0.00054794,120]
[321211380,1711984333345,-500.0,0.00054794,120]
[321211381,1711984333355,-500.0,0.00054794,60]
[321211382,1711984333364,-1000.0,0.00054794,120]
[321211383,1711984333374,-1000.0,0.00054794,120]
[321211384,1711984333384,-1000.0,0.00054794,120]
[321211385,1711984333393,-1000.0,0.00054794,120]
[321211386,1711984333402,-722.4160646,0.00054794,120]
[321211387,1711984333412,-500.0,0.00054794,120]
[321211388,1711984333421,-500.0,0.00054794,120]
[321211389,1711984333430,-500.0,0.00054794,120]
[321211390,1711984333439,-500.0,0.00054794,120]
[321211391,1711984333449,-500.0,0.00054794,120]
[321211392,1711984333458,-500.0,0.00054794,120]
[321211393,1711984333467,-500.0,0.00054794,120]
[321211394,1711984333478,-500.0,0.00054794,120]
[321211395,1711984333488,-500.0,0.00054794,120]
[321211396,1711984333498,-500.0,0.00054794,120]
[321211397,1711984333507,-500.0,0.00054794,120]
[321211398,1711984333516,-500.0,0.00054794,120]
[321211399,1711984333529,-500.0,0.00054794,120]
[321211400,1711984333541,-500.0,0.00054794,120]
[321211401,1711984333551,-500.0,0.00054794,120]
[321211402,1711984333560,-528.55,0.00054794,120]
[321211403,1711984333570,-500.0,0.00054794,4]
[321211404,1711984333579,-638.91221207,0.00054794,120]
[321211405,1711984333589,-1000.0,0.00054794,120]
[321211406,1711984333599,-1000.0,0.00054794,120]
[321211407,1711984333609,-1000.0,0.00054794,120]
[321211408,1711984333768,-1000.0,0.00054794,120]
[321211409,1711984333781,-1000.0,0.00054794,120]
[321211410,1711984333790,-1000.0,0.00054794,120]
[321211411,1711984333799,-1000.0,0.00054794,120]
[321211412,1711984333811,-1000.0,0.00054794,120]
[321211413,1711984333820,-1000.0,0.00054794,120]
[321211414,1711984333829,-1000.0,0.00054794,120]
[321211415,1711984333840,-912.42714701,0.00054794,120]
[321211416,1711984333849,-1000.0,0.00054795,120]
[321211417,1711984333859,-500.0,0.00054795,120]
[321211418,1711984333868,-500.0,0.00054795,120]
[321211419,1711984333878,-500.0,0.00054795,120]
[321211420,1711984333887,-500.0,0.00054795,120]
[321211421,1711984333896,-500.0,0.00054795,120]
[321211422,1711984333907,-500.0,0.00054795,120]
[321211423,1711984333917,-500.0,0.00054795,120]
[321211424,1711984333927,-500.0,0.00054795,120]
[321211425,1711984333937,-500.0,0.00054795,120]
[321211426,1711984333946,-769.0,0.00054795,120]
[321211427,1711984333956,-12008.6,0.00054795,2]
[321211428,1711984333966,-151.0,0.00054795,120]
[321211429,1711984333975,-151.0,0.00054795,120]
[321211430,1711984333985,-151.0,0.00054795,120]
[321211431,1711984333995,-151.0,0.00054795,120]
[321211432,1711984334007,-500.0,0.00054795,120]
[321211433,1711984334017,-500.0,0.00054795,120]
[321211434,1711984334031,-500.0,0.00054795,120]
[321211435,1711984334042,-500.0,0.00054795,120]
[321211436,1711984334052,-500.0,0.00054795,120]
[321211437,1711984334062,-500.0,0.00054795,120]
[321211438,1711984334072,-500.0,0.00054795,120]
[321211439,1711984334082,-500.0,0.00054795,120]
[321211440,1711984334091,-500.0,0.00054795,120]
[321211441,1711984334101,-500.0,0.00054795,120]
[321211442,1711984334110,-500.0,0.00054795,120]
[321211443,1711984334119,-500.0,0.00054795,120]
[321211444,1711984334128,-500.0,0.00054795,120]
[321211445,1711984334138,-500.0,0.00054795,120]
[321211446,1711984334148,-500.0,0.00054795,120]
[321211447,1711984334157,-500.0,0.00054795,120]
[321211448,1711984334168,-500.0,0.00054795,120]
[321211449,1711984334178,-500.0,0.00054795,120]
[321211450,1711984334188,-500.0,0.00054795,120]
[321211451,1711984334198,-500.0,0.00054795,120]
[321211452,1711984334207,-500.0,0.00054795,120]
[321211453,1711984334216,-500.0,0.00054795,120]
[321211454,1711984334225,-500.0,0.00054795,120]
[321211455,1711984334235,-500.0,0.00054795,120]
[321211456,1711984334244,-957.0,0.00054795,120]
[321211457,1711984334253,-151.0,0.00054795,120]
[321211458,1711984334263,-151.0,0.00054795,120]
[321211459,1711984334273,-500.0,0.00054795,120]
[321211460,1711984334286,-500.0,0.00054795,120]
[321211461,1711984334296,-500.0,0.00054795,120]
[321211462,1711984334307,-500.0,0.00054795,120]
[321211463,1711984334318,-500.0,0.00054795,120]
[321211464,1711984334328,-500.0,0.00054795,120]
[321211465,1711984334337,-500.0,0.00054795,120]
[321211466,1711984334346,-911.0,0.00054795,120]
[321211467,1711984334355,-157.17391376,0.000548,120]
[321211468,1711984334366,-179.21717348,0.000548,30]
[321211469,1711984334376,-1626.21500864,0.000548,30]
[321211470,1711984334386,-493.28171954,0.000548,30]
[321211471,1711984334395,-1179.84600204,0.000548,30]
[321211472,1711984334405,-523.35417663,0.000548,30]
[321211473,1711984334414,-2521.98038421,0.000548,120]
[321211474,1711984334424,-2635.06,0.000549,2]
[321211475,1711984334433,-4871.435,0.00054919,120]
[321211476,1711984334443,-5691.0,0.00054919,120]
[321211477,1711984334452,-1186.351,0.00054919,120]
[321211478,1711984334462,-230.372,0.00054919,120]
[321211479,1711984334471,-43048.0,0.00054919,120]
[321211480,1711984334481,-1049.0,0.00054919,120]
[321211481,1711984334490,-30000.0,0.00055,120]
[321211482,1711984334500,-30000.0,0.00055,120]
[321211483,1711984334509,-30000.0,0.00055,120]
[321211484,1711984334518,-30000.0,0.00055,120]
[321211485,1711984334533,-30000.0,0.00055,120]
[321211486,1711984334543,-30000.0,0.00055,120]
[321211487,1711984334552,-30000.0,0.00055,120]
[321211488,1711984334561,-30000.0,0.00055,120]
[321211489,1711984334570,-30000.0,0.00055,120]
[321211490,1711984334579,-30000.0,0.00055,120]
[321211491,1711984334588,-8053.638314,0.00055,120]
[321211492,1711984334598,-253.59837341,0.00055,120]
[321211493,1711984334607,-6740.23325591,0.00055,60]
[321211494,1711984334617,-13513.41923103,0.00055,120]
[321211495,1711984334627,-452.24,0.00055,14]
[321211496,1711984334637,-600.0,0.00055,56]